bitfinex-derivatives/quotes_ETHF0:USTF0_20250505
["timestamp","ask_amount","ask_price","bid_price","bid_amount"]
[1746439426416,1.7928008,1822.1,1822.0,3.732]
[1746439426613,1.5192479,1822.1,1822.0,6.54903]
[1746439426826,1.5192479,1822.1,1822.0,5.4514]
[1746439427512,1.7928008,1822.1,1822.0,5.4514]
[1746439429117,3.3918008,1822.1,1822.0,5.4514]
[1746439430615,1.7928008,1822.1,1822.0,5.4514]
[1746439432115,3.4765008,1822.1,1822.0,5.4514]
[1746439433116,1.5192479,1822.1,1822.0,5.4514]
[1746439434018,1.7928008,1822.1,1822.0,5.4514]
[1746439434220,3.4736008,1822.1,1822.0,5.4514]
[1746439438116,3.4736008,1822.1,1822.0,3.732]
[1746439441115,8.4736008,1822.1,1822.0,3.732]
[1746439441322,8.4736008,1822.1,1822.0,3.32013353]
[1746439442421,3.4736008,1822.1,1822.0,3.32013353]
[1746439442623,3.0519229,1822.1,1822.0,3.32013353]
[1746439443517,2.77837,1822.1,1822.0,3.32013353]
[1746439443921,2.77837,1822.1,1822.0,5.03383353]
[1746439445924,1.09757,1822.1,1822.0,5.03383353]
[1746439446620,1.3711229,1822.1,1822.0,5.03383353]
[1746439447125,4.9911229,1822.1,1822.0,5.03383353]
[1746439447523,4.71757,1822.1,1822.0,5.03383353]
[1746439447723,4.9911229,1822.1,1822.0,5.03383353]
[1746439448719,3.62,1822.1,1822.0,6.13146353]
[1746439448921,3.62,1822.1,1822.0,11.13146353]
[1746439449121,3.2078,1822.2,1822.0,10.03383353]
[1746439449324,3.2078,1822.2,1822.1,2.37996175]
[1746439449521,4.30531,1822.2,1822.1,2.37996175]
[1746439449726,3.2078,1822.2,1822.1,2.37996175]
[1746439450129,3.68280233,1822.2,1822.1,2.37996175]
[1746439451321,3.68280233,1822.2,1822.1,7.37996175]
[1746439452631,1.3711229,1822.1,1822.0,3.32013353]
[1746439452921,4.29202523,1822.1,1822.0,3.32013353]
[1746439453625,4.29202523,1822.1,1822.0,2.9083199]
[1746439453825,0.47500233,1822.1,1822.0,7.9083199]
[1746439454026,0.47500233,1822.1,1822.0,6.5144499]
[1746439454323,0.47500233,1822.1,1822.0,11.5144499]
[1746439455028,1.57257233,1822.1,1822.0,11.5144499]
[1746439455328,1.56575012,1822.1,1822.0,6.5144499]
[1746439456028,1.83930302,1822.1,1822.0,6.5144499]
[1746439456229,1.83930302,1822.1,1822.0,5.4168199]
[1746439457225,0.46818012,1822.1,1822.0,11.5144499]
[1746439457722,1.56575012,1822.1,1822.0,6.5144499]
[1746439458331,0.46818012,1822.1,1822.0,6.5144499]
[1746439458535,1.56575012,1822.1,1822.0,6.5144499]
[1746439459224,0.46818012,1822.1,1822.0,6.5144499]
[1746439459425,1.56575012,1822.1,1822.0,6.5144499]
[1746439459631,0.46818012,1822.1,1822.0,6.5144499]
[1746439460129,0.74173302,1822.1,1822.0,5.4168199]
[1746439460430,0.74173302,1822.1,1822.0,6.5144499]
[1746439461433,0.2735529,1822.1,1822.0,6.5144499]
[1746439461628,3.2078,1822.2,1822.1,1.09757]
[1746439461833,3.2078,1822.2,1822.1,3.59727]
[1746439462034,0.2735529,1822.4,1822.3,1.09745]
[1746439462335,6.83419583,1822.5,1822.4,1.09739]
[1746439462936,8.64739374,1822.5,1822.4,1.09739]
[1746439463127,8.64739374,1822.5,1822.4,4.82939]
[1746439463327,8.64739374,1822.5,1822.4,7.28029]
[1746439464123,8.92094664,1822.5,1822.4,7.28029]
[1746439464325,10.01827664,1822.5,1822.4,7.28029]
[1746439464630,15.01827664,1822.5,1822.4,3.732]
[1746439464834,16.71677664,1822.5,1822.4,44.532]
[1746439465236,11.71677664,1822.5,1822.4,44.532]
[1746439466838,9.9201765,1822.5,1822.4,44.532]
[1746439467431,8.8228465,1822.5,1822.4,45.62939]
[1746439467627,9.9201765,1822.5,1822.4,44.532]
[1746439468038,9.9201765,1822.5,1822.4,45.62939]
[1746439468237,9.9201765,1822.5,1822.4,44.532]
[1746439468432,8.8228465,1822.5,1822.4,45.62939]
[1746439468736,9.9201765,1822.5,1822.4,48.13339]
[1746439468936,8.8228465,1822.5,1822.4,48.13339]
[1746439469530,6.8507936,1822.5,1822.4,48.13339]
[1746439472742,3.9165465,1822.5,1822.4,48.13339]
[1746439474944,0.2735529,1822.5,1822.4,48.13339]
[1746439475444,1.3708829,1822.5,1822.4,45.62939]
[1746439475647,3.0411829,1822.5,1822.4,45.62939]
[1746439475838,3.61213,1822.5,1822.4,45.62939]
[1746439476034,3.8856829,1822.5,1822.4,44.532]
[1746439476241,4.6788829,1822.5,1822.4,44.532]
[1746439476443,4.6788829,1822.5,1822.4,44.542]
[1746439478849,4.6788829,1822.5,1822.4,45.63939]
[1746439479145,3.5815529,1822.5,1822.4,45.63939]
[1746439481249,4.6788829,1822.5,1822.4,45.63939]
[1746439482142,3.5815529,1822.5,1822.4,45.63939]
[1746439482350,4.6788829,1822.5,1822.4,47.29569]
[1746439484754,4.6788829,1822.5,1822.4,46.1983]
[1746439485653,4.6788829,1822.5,1822.4,47.29569]
[1746439485952,3.308,1822.5,1822.4,47.29569]
[1746439486154,3.308,1822.5,1822.4,48.98449]
[1746439486858,4.40533,1822.5,1822.4,48.98449]
[1746439487054,3.308,1822.5,1822.4,48.98449]
[1746439487256,6.8698,1822.6,1822.5,1.09733]
[1746439487557,7.96708,1822.6,1822.5,1.09733]
[1746439487748,9.9640329,1822.6,1822.5,1.09733]
[1746439487950,9.69048,1822.6,1822.5,1.09733]
[1746439488249,9.69048,1822.6,1822.5,4.82933]
[1746439488953,9.9640329,1822.6,1822.5,4.82933]
[1746439489456,8.5932,1822.6,1822.5,4.82933]
[1746439489755,9.69047,1822.6,1822.5,6.39383]
[1746439490154,9.9640229,1822.6,1822.5,6.39383]
[1746439493356,8.8667529,1822.6,1822.5,6.39383]
[1746439493559,8.5932,1822.6,1822.5,6.39383]
[1746439493760,8.8667529,1822.6,1822.5,6.39383]
[1746439494056,8.5932,1822.6,1822.5,6.39383]
[1746439494658,9.69047,1822.6,1822.5,6.39383]
[1746439495058,9.9640229,1822.6,1822.5,6.39383]
[1746439495358,6.3020229,1822.6,1822.5,6.39383]
[1746439495557,5.2047529,1822.6,1822.5,6.39383]
[1746439496159,6.3020229,1822.6,1822.5,6.39383]
[1746439497462,6.3020229,1822.6,1822.5,4.82933]
[1746439500059,6.3020229,1822.6,1822.5,3.732]
[1746439500259,6.3020229,1822.6,1822.5,4.82933]
[1746439500460,6.3020229,1822.6,1822.5,3.732]
[1746439500659,6.3020229,1822.6,1822.5,4.82933]
[1746439500865,6.3020229,1822.6,1822.5,3.732]
[1746439502366,9.9450165,1822.6,1822.5,3.732]
[1746439503962,1.3708829,1822.5,1822.4,0.01]
[1746439504163,3.8436829,1822.5,1822.4,3.742]
[1746439504465,8.8436829,1822.5,1822.4,44.542]
[1746439505666,3.8436829,1822.5,1822.4,44.542]
[1746439509868,11.13959245,1822.5,1822.4,44.542]
[1746439510666,11.13959245,1822.5,1822.4,44.532]
[1746439511068,10.86603955,1822.5,1822.4,44.532]
[1746439511667,10.04893955,1822.5,1822.4,44.532]
[1746439512670,10.32249245,1822.5,1822.4,44.532]
[1746439512875,8.50187516,1822.5,1822.4,44.532]
[1746439513572,8.22832226,1822.5,1822.4,44.532]
[1746439514169,8.50187516,1822.5,1822.4,46.1487]
[1746439515574,8.22832226,1822.5,1822.4,46.1487]
[1746439517471,8.50187516,1822.5,1822.4,46.1487]
[1746439517869,6.67679446,1822.5,1822.4,44.532]
[1746439519870,10.32249245,1822.5,1822.4,44.532]
[1746439520475,8.66679245,1822.5,1822.4,44.532]
[1746439520976,10.27829245,1822.5,1822.4,46.1914]
[1746439521579,10.27829245,1822.5,1822.4,46.2014]
[1746439523173,8.45640988,1822.5,1822.4,46.2014]
[1746439524277,6.84490988,1822.5,1822.4,46.2014]
[1746439524671,6.84490988,1822.5,1822.4,47.29879]
[1746439524977,6.84490988,1822.5,1822.4,46.2014]
[1746439526381,6.57135698,1822.5,1822.4,46.2014]
[1746439527079,6.84490988,1822.5,1822.4,46.2014]
[1746439528380,6.57135698,1822.5,1822.4,46.2014]
[1746439528682,6.84490988,1822.5,1822.4,46.2014]
[1746439528982,6.57135698,1822.5,1822.4,46.2014]
[1746439529983,6.84490988,1822.5,1822.4,46.2014]
[1746439530480,6.57135698,1822.5,1822.4,46.2014]
[1746439530675,6.84490988,1822.5,1822.4,46.2014]
[1746439535297,5.47402698,1822.5,1822.4,47.29879]
[1746439537693,6.57135698,1822.5,1822.4,47.29879]
[1746439537894,5.47402698,1822.5,1822.4,47.29879]
[1746439538293,6.57135698,1822.5,1822.4,47.29879]
[1746439538995,1.09733,1822.5,1822.4,47.29879]
[1746439539594,3.4813529,1822.6,1822.5,1.09733]
[1746439539797,9.39690379,1822.8,1822.7,1.09721]
[1746439539992,9.12335089,1822.8,1822.7,1.09721]
[1746439540195,9.12335089,1822.8,1822.7,4.82921]
[1746439541203,9.39690379,1822.8,1822.7,4.82921]
[1746439541902,9.39690379,1822.8,1822.7,9.82921]
[1746439543105,0.2735529,1822.8,1822.7,9.82921]
[1746439544207,0.2735529,1822.8,1822.7,4.82921]
[1746439545102,3.64932391,1823.0,1822.9,1.09709]
[1746439545504,3.92287681,1823.0,1822.9,1.09709]
[1746439545805,3.92287681,1823.0,1822.9,43.56049]
[1746439546304,3.92287681,1823.0,1822.9,47.29249]
[1746439546504,0.2735529,1823.0,1822.9,47.29249]
[1746439548006,8.3931,1823.3,1823.2,1.09691]
[1746439548211,7.0813529,1823.3,1823.2,4.82891]
[1746439548607,7.0813529,1823.3,1823.2,45.62891]
[1746439548806,7.0813529,1823.3,1823.2,47.22341]
[1746439550105,6.8078,1823.3,1823.2,47.22341]
[1746439550304,7.0813529,1823.3,1823.2,47.22341]
[1746439550812,3.2078,1823.3,1823.2,47.22341]
[1746439551002,3.4813529,1823.3,1823.2,47.22341]
[1746439551202,3.2078,1823.3,1823.2,47.22341]
[1746439551602,4.7747,1823.3,1823.2,47.22341]
[1746439552002,6.1451029,1823.3,1823.2,47.22341]
[1746439552203,6.1451029,1823.3,1823.2,45.62891]
[1746439553007,5.0482529,1823.3,1823.2,45.62891]
[1746439559117,6.1451029,1823.3,1823.2,45.62891]
[1746439560011,6.1451029,1823.3,1823.2,44.532]
[1746439560214,11.1451029,1823.3,1823.2,44.532]
[1746439561711,11.1451029,1823.3,1823.2,41.78872651]
[1746439562818,1.09709,1822.9,1822.8,1.7096]
[1746439563019,4.30489,1822.9,1822.8,1.7096]
[1746439563313,4.30489,1822.9,1822.8,2.80675]
[1746439563916,4.30489,1822.9,1822.8,43.60675]
[1746439564217,4.30489,1822.9,1822.8,47.33875]
[1746439565020,7.1001429,1822.9,1822.8,46.2416]
[1746439565312,7.1001429,1822.9,1822.8,44.532]
[1746439566617,6.82659,1822.9,1822.8,44.532]
[1746439567218,7.1001429,1822.9,1822.8,44.532]
[1746439567421,6.82659,1822.9,1822.8,44.532]
[1746439567615,6.82659,1822.9,1822.8,45.62915]
[1746439567812,5.98249,1822.9,1822.8,46.254]
[1746439568419,5.98249,1822.9,1822.8,47.35115]
[1746439568719,5.98249,1822.9,1822.8,46.254]
[1746439569118,6.2560429,1822.9,1822.8,44.532]
[1746439569725,11.2560429,1822.9,1822.8,3.732]
[1746439570217,11.2560429,1822.9,1822.8,0.98809422]
[1746439570723,1.09733,1822.5,1822.4,0.01]
[1746439570916,4.30513,1822.5,1822.4,0.01]
[1746439571119,4.30513,1822.5,1822.4,3.742]
[1746439571319,4.30513,1822.5,1822.4,44.542]
[1746439571514,5.89813,1822.5,1822.4,44.542]
[1746439572820,6.1716829,1822.5,1822.4,44.542]
[1746439573813,5.89813,1822.5,1822.4,45.63939]
[1746439574021,5.89813,1822.5,1822.4,48.91709]
[1746439574210,3.2078,1822.5,1822.4,48.91709]
[1746439575218,3.4813529,1822.5,1822.4,48.07619]
[1746439575607,3.2078,1822.5,1822.4,48.07619]
[1746439576817,3.2078,1822.7,1822.6,1.09727]
[1746439577119,4.30501,1822.7,1822.6,1.09727]
[1746439577314,4.30501,1822.7,1822.6,1.87687]
[1746439578223,3.2078,1822.7,1822.6,1.87687]
[1746439578414,4.30501,1822.7,1822.6,3.59517]
[1746439578917,3.2078,1822.7,1822.6,3.59517]
[1746439583328,3.4813529,1822.7,1822.6,3.59517]
[1746439583920,1.09727,1822.6,1822.5,10.72731]
[1746439584125,2.70627,1822.6,1822.5,10.72731]
[1746439584425,2.70627,1822.6,1822.5,12.32981]
[1746439585029,2.70627,1822.6,1822.5,6.43181]
[1746439585627,2.9798229,1822.6,1822.5,3.732]
[1746439589129,6.8825529,1822.6,1822.4,40.81]
[1746439589335,10.32083,1822.5,1822.4,40.81]
[1746439589638,10.5943829,1822.5,1822.4,40.81]
[1746439589832,15.5943829,1822.5,1822.4,40.81]
[1746439590530,15.5943829,1822.5,1822.4,44.542]
[1746439590834,10.5943829,1822.5,1822.4,44.542]
[1746439592224,10.5943829,1822.5,1822.4,45.63939]
[1746439592225,8.3728,1822.5,1822.4,45.63939]
[1746439592629,8.6463529,1822.5,1822.4,45.63939]
[1746439592832,8.3728,1822.5,1822.4,45.63939]
[1746439593033,8.3728,1822.5,1822.4,46.47839]
[1746439593626,6.7908,1822.5,1822.4,46.47839]
[1746439594034,3.2078,1822.5,1822.4,46.47839]
[1746439594730,4.30513,1822.5,1822.4,45.381]
[1746439595130,5.91873,1822.5,1822.4,45.381]
[1746439596137,6.1922829,1822.5,1822.4,44.542]
[1746439596530,7.0261829,1822.5,1822.4,44.542]
[1746439597437,6.75263,1822.5,1822.4,44.542]
[1746439598039,7.0261829,1822.5,1822.4,44.542]
[1746439599235,15.6211829,1822.5,1822.4,44.542]
[1746439599629,10.6211829,1822.5,1822.4,44.542]
[1746439603143,15.6211829,1822.5,1822.4,1.8928]
[1746439603341,1.0977,1821.9,1821.8,5.898]
[1746439603531,1.09777,1821.8,1821.7,2.77151]
[1746439604142,1.09777,1821.8,1821.7,47.30351]
[1746439604831,5.96394,1821.9,1821.7,47.30351]
[1746439605242,4.30554,1821.9,1821.8,1.6737]
[1746439606042,3.2078,1821.9,1821.7,44.532]
[1746439606240,3.0183429,1821.6,1821.2,7.33299683]
[1746439606441,3.2078,1821.3,1821.2,8.43111683]
[1746439606737,1.09802,1821.4,1821.2,50.86849683]
[1746439606942,6.8038,1821.5,1821.3,1.6374]
[1746439607139,7.90178,1821.5,1821.3,2.73545]
[1746439607342,7.90174,1821.5,1821.4,0.8469]
[1746439607544,7.90174,1821.5,1821.4,2.4843]
[1746439607850,4.30567,1821.7,1821.5,1.09793]
[1746439608046,4.30562,1821.7,1821.6,1.6374]
[1746439609147,1.09788,1821.6,1821.5,3.732]
[1746439609350,2.78838,1821.6,1821.5,5.4337]
[1746439610749,2.78838,1821.6,1821.5,3.732]
[1746439611453,2.78838,1821.6,1821.5,5.4337]
[1746439611947,1.09788,1821.6,1821.5,6.53164]
[1746439612348,1.09788,1821.6,1821.5,5.4337]
[1746439613052,1.3714329,1821.6,1821.5,5.4337]
[1746439613551,3.0286329,1821.6,1821.5,5.4337]
[1746439614651,3.0286329,1821.6,1821.5,6.53164]
[1746439615053,3.0286329,1821.6,1821.5,3.732]
[1746439615457,3.8165329,1821.6,1821.5,3.732]
[1746439616054,8.8165329,1821.6,1821.5,3.732]
[1746439616643,3.8165329,1821.6,1821.5,3.732]
[1746439618161,4.2439484,1821.6,1821.5,3.732]
[1746439623262,4.2439484,1821.6,1821.5,2.57863]
[1746439627867,4.2439484,1821.6,1821.5,2.30397008]
[1746439630768,4.2439484,1821.6,1821.5,1.89196592]
[1746439634967,3.1460684,1821.6,1820.7,3.2078]
[1746439635173,3.2078,1820.8,1820.3,3.1837]
[1746439635364,3.2078,1820.6,1820.4,1.5605]
[1746439635572,4.30632,1820.6,1820.5,40.8]
[1746439635871,3.2078,1820.6,1820.5,40.8]
[1746439636170,3.6352155,1820.6,1820.5,50.63054]
[1746439636372,3.6352155,1820.6,1820.5,52.19104]
[1746439636961,4.7336955,1820.6,1820.5,51.0925]
[1746439637161,3.6352155,1820.6,1820.5,52.19104]
[1746439637574,4.7336955,1820.6,1820.5,52.19104]
[1746439637971,3.6352155,1820.6,1820.5,52.19104]
[1746439638174,4.7336955,1820.6,1820.5,52.19104]
[1746439638370,4.7336955,1820.6,1820.5,46.0925]
[1746439639769,5.0072484,1820.6,1820.5,46.0925]
[1746439641568,8.6482484,1820.6,1820.5,44.532]
[1746439643275,10.3410484,1820.6,1820.5,3.732]
[1746439644270,10.3410484,1820.6,1820.5,44.532]
[1746439649379,8.6482484,1820.6,1820.5,44.532]
[1746439649579,8.6482484,1820.6,1820.5,46.1044]
[1746439650776,8.3746955,1820.6,1820.5,46.1044]
[1746439651081,4.0684155,1820.6,1820.5,52.20294]
[1746439651469,0.4274155,1820.6,1820.5,52.20294]
[1746439651683,1.5258955,1820.6,1820.5,52.20294]
[1746439652782,1.5258955,1820.6,1820.5,47.20294]
[1746439654376,1.5258955,1820.6,1820.5,46.1044]
[1746439654578,1.5258955,1820.6,1820.5,47.20294]
[1746439655076,1.5258955,1820.6,1820.5,46.1044]
[1746439655981,4.7336955,1820.6,1820.5,46.1044]
[1746439656385,5.0072484,1820.6,1820.5,46.1044]
[1746439659585,3.9087684,1820.6,1820.5,46.1044]
[1746439660585,3.9087684,1820.6,1820.5,47.20294]
[1746439660788,5.0072484,1820.6,1820.5,47.20294]
[1746439662488,4.7336955,1820.6,1820.5,47.20294]
[1746439663080,3.6352155,1820.6,1820.5,47.20294]
[1746439663277,0.4274155,1820.6,1820.5,47.20294]
[1746439665089,0.4274155,1820.6,1820.5,52.20294]
[1746439665291,0.4274155,1820.6,1820.5,47.20294]
[1746439665693,1.5258955,1820.6,1820.5,47.20294]
[1746439666192,0.4274155,1820.6,1820.5,52.20294]
[1746439667090,0.4274155,1820.6,1820.5,47.20294]
[1746439667794,0.4274155,1820.6,1820.5,58.10094]
[1746439672593,0.4274155,1820.6,1820.5,53.10094]
[1746439679291,5.5e-06,1820.6,1820.5,53.10094]
[1746439694008,1.5652055,1820.6,1820.5,53.10094]
[1746439694207,1.5652055,1820.6,1820.5,51.52854]
[1746439694402,2.3977055,1820.6,1820.5,55.17154]
[1746439697802,2.6712584,1820.6,1820.5,55.17154]
[1746439698204,2.3977055,1820.6,1820.5,55.17154]
[1746439699305,2.6712584,1820.6,1820.5,49.27354]
[1746439699502,7.6712584,1820.6,1820.5,45.63054]
[1746439699701,8.7697384,1820.6,1820.5,45.63054]
[1746439700404,8.7697384,1820.6,1820.5,44.532]
[1746439702511,12.4127384,1820.6,1820.5,44.532]
[1746439703212,15.6205384,1820.6,1820.5,44.532]
[1746439707818,4.7730055,1820.6,1820.5,45.63054]
[1746439708310,6.6498855,1820.6,1820.5,45.63054]
[1746439708509,5.5514055,1820.6,1820.5,45.63054]
[1746439708819,6.6498855,1820.6,1820.5,45.63054]
[1746439709918,5.5514055,1820.6,1820.5,45.63054]
[1746439710122,6.6498855,1820.6,1820.5,45.63054]
[1746439712525,5.5514055,1820.6,1820.5,45.63054]
[1746439712732,6.6498855,1820.6,1820.5,45.63054]
[1746439712932,5.5514055,1820.6,1820.5,45.63054]
[1746439713531,5.8714855,1820.6,1820.5,45.63054]
[1746439714130,6.7279094,1820.6,1820.5,45.63054]
[1746439714533,6.72793224,1820.6,1820.5,45.63054]
[1746439714731,5.90300514,1820.6,1820.5,45.63054]
[1746439714919,7.00148514,1820.6,1820.5,45.63054]
[1746439716335,7.00154162,1820.6,1820.5,45.63054]
[1746439716933,6.72798872,1820.6,1820.5,45.63054]
[1746439717128,7.00154162,1820.6,1820.5,45.63054]
[1746439718029,7.00168274,1820.6,1820.5,45.63054]
[1746439719737,7.00192509,1820.6,1820.5,45.63054]
[1746439720636,5.90344509,1820.6,1820.5,45.63054]
[1746439721538,5.9035989,1820.6,1820.5,45.63054]
[1746439721732,5.9035989,1820.6,1820.5,48.15974]
[1746439721939,7.0020789,1820.6,1820.5,48.15974]
[1746439722135,5.9035989,1820.6,1820.5,48.15974]
[1746439723132,4.064846,1820.6,1820.5,48.15974]
[1746439723337,0.857046,1820.6,1820.5,48.15974]
[1746439724334,0.857046,1820.6,1820.5,48.58795094]
[1746439724838,0.85665918,1820.6,1820.5,48.58795094]
[1746439728838,0.85665918,1820.6,1820.5,54.48595094]
[1746439730139,0.85700766,1820.6,1820.5,54.48595094]
[1746439732141,0.85700766,1820.6,1820.5,54.05774]
[1746439733347,0.85706423,1820.6,1820.5,54.05774]
[1746439735040,0.85722261,1820.6,1820.5,54.05774]
[1746439736238,1.13077551,1820.6,1820.5,54.05774]
[1746439736442,4.33857551,1820.6,1820.5,51.52854]
[1746439736635,5.18977551,1820.6,1820.5,51.52854]
[1746439736834,6.28841089,1820.6,1820.5,51.52854]
[1746439737045,7.88961089,1820.6,1820.5,51.52854]
[1746439737243,6.79113089,1820.6,1820.5,51.52854]
[1746439738045,7.88961089,1820.6,1820.5,51.52854]
[1746439739647,6.79113089,1820.6,1820.5,51.52854]
[1746439739943,7.88961089,1820.6,1820.5,51.52854]
[1746439740144,7.88985635,1820.6,1820.5,51.52854]
[1746439740351,8.32588885,1820.6,1820.5,51.52854]
[1746439740645,7.88985635,1820.6,1820.5,45.63054]
[1746439741443,7.88987893,1820.6,1820.5,45.63054]
[1746439741942,6.79139893,1820.6,1820.5,45.63054]
[1746439742536,6.51784603,1820.6,1820.5,45.63054]
[1746439742843,7.88987893,1820.6,1820.5,45.63054]
[1746439743039,6.36197035,1820.6,1820.5,45.63054]
[1746439743243,6.79140863,1820.6,1820.5,45.63054]
[1746439743853,3.58360863,1820.6,1820.5,45.63054]
[1746439744351,2.73240863,1820.6,1820.5,45.63054]
[1746439744851,2.73234421,1820.6,1820.5,45.63054]
[1746439745642,0.85759131,1820.6,1820.5,45.63054]
[1746439746343,0.85759131,1820.6,1820.5,53.83834]
[1746439747147,0.85759131,1820.6,1820.5,55.47434]
[1746439747653,0.85759131,1820.6,1820.5,61.37234]
[1746439748147,0.42821745,1820.6,1820.5,61.37234]
[1746439748348,0.8562149,1820.6,1820.5,61.37234]
[1746439748549,1.29631188,1820.6,1820.5,61.37234]
[1746439748949,0.86826475,1820.6,1820.5,61.37234]
[1746439749450,10.15350988,1821.2,1821.1,1.09818]
[1746439749651,9.48320008,1821.2,1821.1,1.09818]
[1746439749949,12.25252008,1821.2,1821.1,1.09818]
[1746439750253,12.24605977,1821.2,1821.1,43.46078]
[1746439751250,11.14793977,1821.2,1821.1,43.46078]
[1746439751449,12.24605977,1821.2,1821.1,43.46078]
[1746439751852,11.14694263,1821.2,1821.1,43.46078]
[1746439752039,12.24506263,1821.2,1821.1,43.46078]
[1746439752550,11.14694263,1821.2,1821.1,43.46078]
[1746439752851,11.14694263,1821.2,1821.1,44.24188]
[1746439753044,5.67291565,1821.2,1821.1,44.24188]
[1746439753439,5.2525529,1821.2,1821.1,44.24188]
[1746439753644,5.6726866,1821.2,1821.1,44.24188]
[1746439754452,4.0014866,1821.2,1821.1,44.24188]
[1746439755250,6.80949302,1821.2,1821.1,44.24188]
[1746439755846,6.80949302,1821.2,1821.1,41.89818]
[1746439756052,6.80949302,1821.2,1821.1,40.8]
[1746439756352,11.80949302,1821.2,1821.1,40.8]
[1746439757149,11.80949302,1821.2,1821.1,41.89818]
[1746439757349,11.80949302,1821.2,1821.1,40.8]
[1746439757551,6.80949302,1821.2,1821.1,40.8]
[1746439758651,6.80224421,1821.2,1821.1,41.89818]
[1746439759943,5.70412421,1821.2,1821.1,41.89818]
[1746439760141,6.80224421,1821.2,1821.1,41.89818]
[1746439760346,6.80197334,1821.2,1821.1,41.89818]
[1746439761356,5.70385334,1821.2,1821.1,41.89818]
[1746439761655,6.80197334,1821.2,1821.1,41.89818]
[1746439761953,7.23648274,1821.2,1821.1,41.89818]
[1746439762354,8.04858274,1821.2,1821.1,41.89818]
[1746439763756,8.04844109,1821.2,1821.1,41.89818]
[1746439765057,8.04844109,1821.2,1821.1,40.8]
[1746439765557,8.04842029,1821.2,1821.1,40.8]
[1746439766558,5.86464739,1821.2,1821.1,41.89818]
[1746439766751,0.94634739,1821.2,1821.1,44.36128]
[1746439766951,2.04446739,1821.2,1821.1,45.18018]
[1746439767151,2.04446429,1821.2,1821.1,45.18018]
[1746439767450,2.31801719,1821.2,1821.1,45.18018]
[1746439767958,5.52581719,1821.2,1821.1,45.18018]
[1746439768859,5.52544226,1821.2,1821.1,45.18018]
[1746439770559,5.52547152,1821.2,1821.1,44.082]
[1746439770859,5.52547152,1821.2,1821.1,45.18018]
[1746439772249,5.1139823,1821.2,1821.1,45.18018]
[1746439772454,5.52579882,1821.2,1821.1,45.18018]
[1746439773663,5.52608806,1821.2,1821.1,45.18018]
[1746439775060,7.16198806,1821.2,1821.1,42.4061]
[1746439775261,7.16198806,1821.2,1821.1,43.50428]
[1746439775763,7.16247655,1821.2,1821.1,43.50428]
[1746439776567,7.16247655,1821.2,1821.1,42.4061]
[1746439777067,7.16247655,1821.2,1821.1,40.8]
[1746439777265,7.16247655,1821.2,1821.1,41.89818]
[1746439777463,7.16247655,1821.2,1821.1,43.58718]
[1746439779168,6.7498823,1821.2,1821.1,43.58718]
[1746439779466,7.16258732,1821.2,1821.1,43.58718]
[1746439780864,6.7498823,1821.2,1821.1,43.58718]
[1746439781063,7.16260655,1821.2,1821.1,43.58718]
[1746439782571,6.7498823,1821.2,1821.1,43.58718]
[1746439782867,7.16268702,1821.2,1821.1,43.58718]
[1746439783069,7.16268702,1821.2,1821.1,42.489]
[1746439784369,7.16270683,1821.2,1821.1,42.489]
[1746439784770,7.16270683,1821.2,1821.1,40.8]
[1746439786071,7.16301597,1821.2,1821.1,40.8]
[1746439787775,7.16310028,1821.2,1821.1,40.8]
[1746439788371,3.95530028,1821.2,1821.1,40.8]
[1746439788573,7.16310028,1821.2,1821.1,40.8]
[1746439789470,7.16326272,1821.2,1821.1,40.8]
[1746439791274,7.16324654,1821.2,1821.1,40.8]
[1746439792678,3.95544654,1821.2,1821.1,40.8]
[1746439792878,7.16326705,1821.2,1821.1,40.8]
[1746439793078,3.95546705,1821.2,1821.1,40.8]
[1746439793280,12.16326705,1821.2,1821.1,40.8]
[1746439793474,1.3717329,1821.1,1821.0,3.732]
[1746439793676,5.00291765,1821.1,1821.0,3.732]
[1746439793977,10.43742705,1821.1,1821.0,44.532]
[1746439794179,10.43742705,1821.1,1821.0,40.8]
[1746439794581,5.43828742,1821.1,1821.0,40.8]
[1746439795176,5.43828742,1821.1,1821.0,44.532]
[1746439796479,5.43782355,1821.1,1821.0,44.532]
[1746439797682,5.43776875,1821.1,1821.0,44.532]
[1746439797883,12.7336783,1821.1,1821.0,44.532]
[1746439798082,12.7336743,1821.1,1821.0,44.532]
[1746439799578,17.7336743,1821.1,1821.0,0.98520003]
[1746439799777,17.73363698,1821.1,1821.0,3e-08]
[1746439800281,1.09848,1820.6,1820.5,1.6288]
[1746439800483,4.71996513,1820.6,1820.5,42.4288]
[1746439800784,5.15447453,1820.6,1820.5,42.4288]
[1746439801178,6.80477453,1820.6,1820.5,46.1608]
[1746439802581,6.8050361,1820.6,1820.5,46.1608]
[1746439804285,6.8051415,1820.6,1820.5,46.1608]
[1746439804482,6.8051415,1820.6,1820.5,44.532]
[1746439804483,7.0786944,1820.6,1820.5,44.532]
[1746439804679,10.6756944,1820.6,1820.5,44.532]
[1746439804880,10.6756944,1820.6,1820.5,3.732]
[1746439805076,1.09866,1820.3,1820.2,2.5555]
[1746439805285,4.7205121,1820.3,1820.2,2.5555]
[1746439805483,5.1550215,1820.3,1820.2,2.5555]
[1746439805986,7.15015636,1820.3,1820.2,40.8]
[1746439806189,6.87660346,1820.3,1820.2,44.532]
[1746439806383,7.15015636,1820.3,1820.2,44.532]
[1746439807687,7.1498762,1820.3,1820.2,44.532]
[1746439807888,5.1569233,1820.3,1820.2,44.532]
[1746439808283,5.1569233,1820.3,1820.2,46.1493]
[1746439808477,5.1569233,1820.3,1820.2,47.24802]
[1746439808982,0.8504633,1820.3,1820.2,52.24802]
[1746439809185,0.43619086,1820.3,1820.2,52.24802]
[1746439814092,0.43619086,1820.3,1820.2,47.24802]
[1746439816692,0.43619086,1820.3,1820.2,53.14602]
[1746439816994,0.2735529,1820.9,1820.6,1.09848]
[1746439817190,0.2735529,1821.0,1820.9,1.0983]
[1746439817489,0.68615462,1821.0,1820.9,1.0983]